bitfinex/quotes_SOLUSD_20240826
["timestamp","ask_amount","ask_price","bid_price","bid_amount"]
[1724680130029,36.24853557,159.6,159.55,7.52096014]
[1724680130229,42.51423557,159.6,159.55,1.25336014]
[1724680130758,6.2652,159.61,159.55,7.52066014]
[1724680131055,36.24853557,159.62,159.55,1.25336014]
[1724680132556,383.8,159.63,159.55,4.74528796]
[1724680132757,383.8,159.63,159.57,15.6759]
[1724680132976,6.2625,159.68,159.61,6.2649]
[1724680133269,6.2629,159.67,159.62,16.91485868]
[1724680134052,36.24853557,159.66,159.59,15.665]
[1724680134557,36.24853557,159.66,159.6,6.2652]
[1724680136862,42.51183557,159.66,159.6,6.2652]
[1724680137262,16.4901,159.7,159.57,1.25290367]
[1724680137263,36.24853557,159.62,159.57,1.25290367]
[1724680137567,36.24853557,159.62,159.58,1.25290367]
[1724680138182,6.2644,159.63,159.57,6.2666]
[1724680139447,42.51263557,159.64,159.58,6.2663]
[1724680139852,383.8,159.67,159.64,6.264]
[1724680140072,36.24853557,159.69,159.63,6.2641]
[1724680140271,42.51083557,159.69,159.64,1.25262779]
[1724680140581,6.2625,159.68,159.62,6.2648]
[1724680140949,36.24853557,159.69,159.62,1.25276025]
[1724680141554,42.50983557,159.71,159.65,6.2636]
[1724680141852,36.24853557,159.73,159.66,1.25238446]
[1724680142253,0.8277002,159.76,159.66,46.25238446]
[1724680142447,0.8277002,159.76,159.71,6.2612]
[1724680142766,0.8277002,159.76,159.72,1.25204792]
[1724680143351,0.8277002,159.76,159.73,7.5124494]
[1724680143558,0.8277002,159.76,159.75,6.2597]
[1724680144867,0.8277002,159.76,159.75,7.51143135]
[1724680145597,0.8277002,159.76,159.75,51.2597]
[1724680145762,0.8277002,159.76,159.75,6.2597]
[1724680148880,0.8277002,159.76,159.74,15.6503]
[1724680149066,0.8277002,159.76,159.7,15.6537]
[1724680149769,0.8277002,159.76,159.7,21.915]
[1724680149973,7.0871002,159.76,159.7,15.6537]
[1724680150277,0.8277002,159.76,159.7,15.6537]
[1724680150475,6.2607,159.73,159.66,15.6573]
[1724680150684,6.2607,159.73,159.66,21.9205]
[1724680150890,45.20073719,159.72,159.66,21.9205]
[1724680151500,6.2613,159.71,159.62,15.6612]
[1724680151816,51.46203719,159.71,159.64,6.2637]
[1724680151975,51.46203719,159.71,159.65,7.51608469]
[1724680152171,51.46203719,159.71,159.64,6.264]
[1724680152580,0.8277002,159.76,159.71,6.261]
[1724680152879,7.0872002,159.76,159.69,21.9173]
[1724680153077,0.8277002,159.76,159.7,1.25212604]
[1724680153281,0.8277002,159.76,159.71,6.2613]
[1724680153497,0.8277002,159.76,159.7,6.2617]
[1724680153881,0.8277002,159.76,159.71,1.2520555]
[1724680154201,0.8277002,159.76,159.71,7.5133555]
[1724680154402,0.8277002,159.76,159.71,6.2613]
[1724680154587,0.8277002,159.76,159.72,6.2609]
[1724680155898,0.8277002,159.76,159.73,7.51247747]
[1724680156087,0.8277002,159.76,159.74,1.2518758]
[1724680156286,0.8277002,159.76,159.73,6.2605]
[1724680156712,0.8277002,159.76,159.74,1.2518766]
[1724680156883,0.8277002,159.76,159.72,6.2609]
[1724680157207,0.8277002,159.76,159.73,1.25202707]
[1724680157387,0.8277002,159.76,159.71,15.6526]
[1724680157789,0.8277002,159.76,159.72,1.25186499]
[1724680158202,0.8277002,159.76,159.73,6.2602]
[1724680158630,0.8277002,159.76,159.75,6.2597]
[1724680159691,0.8277002,159.76,159.75,51.2597]
[1724680160319,0.8277002,159.76,159.75,6.2597]
[1724680160706,0.8277002,159.76,159.75,51.2597]
[1724680161315,0.8277002,159.76,159.75,6.2597]
[1724680161935,15.10006097,160.14,159.92,18.84]
[1724680162113,45.20073719,160.18,160.04,15.621]
[1724680162312,51.67063719,160.14,160.04,15.621]
[1724680162529,51.67063719,160.14,160.05,1.249322]
[1724680162741,51.67063719,160.14,160.06,6.2474]
[1724680163119,45.20073719,160.11,160.02,1.08417389]
[1724680163324,43.0007,160.14,160.02,1.08417389]
[1724680163325,46.02843739,160.08,160.02,1.08417389]
[1724680164135,0.8277002,160.08,160.02,1.08417389]
[1724680165644,6.2475,160.07,160.02,1.08417389]
[1724680165849,0.8277002,160.08,160.02,1.08417389]
[1724680165850,46.02843739,160.08,160.02,1.08417389]
[1724680166458,0.8277002,160.08,160.02,1.08417389]
[1724680167049,7.0747002,160.08,160.02,1.08417389]
[1724680167252,0.8277002,160.08,160.02,1.08417389]
[1724680167549,0.3277002,160.08,160.02,1.08417389]
[1724680167746,0.3277002,160.08,160.0,1.24947815]
[1724680167957,0.3277002,160.08,160.03,1.24947649]
[1724680168424,0.3277002,160.08,160.0,60.6249]
[1724680168425,0.3277002,160.08,160.0,15.6249]
[1724680168623,6.5748002,160.08,160.01,1.24941147]
[1724680168829,6.2473,160.07,160.0,15.6249]
[1724680169032,0.3277002,160.08,159.99,20.0]
[1724680169248,6.2485,160.04,160.0,1.24965921]
[1724680169421,6.2479,160.06,160.0,1.24965921]
[1724680169627,0.3277002,160.08,160.0,1.24965921]
[1724680170042,6.2472,160.07,160.0,7.49935921]
[1724680170240,0.3277002,160.08,160.0,1.24965921]
[1724680170559,6.2475,160.07,160.0,1.24965921]
[1724680170853,6.5746002,160.08,159.99,90.20073719]
[1724680171057,0.3277002,160.08,160.02,6.2491]
[1724680171226,0.3277002,160.08,160.03,45.0]
[1724680171629,0.3277002,160.08,160.02,45.0]
[1724680172142,0.3277002,160.08,160.03,1.24926672]
[1724680172469,0.3277002,160.08,160.04,15.6203]
[1724680172764,0.3277002,160.08,160.05,111.44972625]
[1724680172927,0.3277002,160.08,160.05,110.20073719]
[1724680173129,0.3277002,160.08,160.06,1.24892965]
[1724680173362,0.3277002,160.08,160.07,6.2472]
[1724680173660,0.3277002,160.08,160.07,51.2472]
[1724680174278,0.3277002,160.08,160.07,52.49607422]
[1724680174551,0.3277002,160.08,160.07,51.2472]
[1724680174734,0.3277002,160.08,160.07,71.2472]
[1724680174941,0.3277002,160.08,160.06,6.2473]
[1724680175449,0.3277002,160.08,160.04,21.8684]
[1724680175665,0.3277002,160.08,160.04,15.6203]
[1724680175961,0.3277002,160.08,160.05,1.24915697]
[1724680176639,0.3277002,160.08,160.06,1.24924306]
[1724680176830,0.3277002,160.08,160.07,6.2472]
[1724680177025,0.3277002,160.08,160.06,16.86804306]
[1724680177260,0.3277002,160.08,160.07,26.2472]
[1724680177755,0.3277002,160.08,160.07,71.2472]
[1724680180462,0.3277002,160.08,160.07,81.3857917]
[1724680180981,6.3647,160.2,160.15,6.244]
[1724680181266,6.3647,160.2,160.13,15.6118]
[1724680181267,6.2414,160.22,160.16,6.2436]
[1724680182139,6.2414,160.22,160.15,6.244]
[1724680182952,6.241,160.23,160.15,6.244]
[1724680183162,52.26903739,160.24,160.17,6.243]
[1724680183455,52.26903739,160.24,160.18,1.24818354]
[1724680183838,52.26903739,160.24,160.18,7.49108354]
[1724680184043,46.02843739,160.24,160.19,6.2425]
[1724680184268,46.02843739,160.24,160.2,1.24815738]
[1724680184480,46.02843739,160.24,160.17,21.8508]
[1724680184662,46.02843739,160.24,160.15,6.2439]
[1724680184867,46.02843739,160.24,160.16,1.24834737]
[1724680185173,46.02843739,160.24,160.18,6.2428]
[1724680185373,46.02843739,160.24,160.19,1.2481586]
[1724680185675,52.26923739,160.24,160.19,1.2481586]
[1724680186178,46.02843739,160.24,160.19,7.4906586]
[1724680187145,6.2418,160.21,160.15,6.244]
[1724680187346,51.44253719,160.21,160.14,6.2444]
[1724680187645,51.44253719,160.21,160.13,15.6115]
[1724680187646,51.44253719,160.21,160.15,6.244]
[1724680188166,45.20073719,160.21,160.16,6.2435]
[1724680188351,45.20073719,160.21,160.17,1.24843754]
[1724680188681,6.2422,160.2,160.13,15.6115]
[1724680189378,6.2422,160.2,160.14,7.49290113]
[1724680189588,6.2425,160.19,160.15,1.24856423]
[1724680189796,0.8277002,160.24,160.15,7.49256423]
[1724680190078,45.20073719,160.22,160.15,7.49256423]
[1724680190441,6.2418,160.21,160.15,7.49256423]
[1724680191385,6.2422,160.2,160.14,6.2444]
[1724680191759,6.2425,160.19,160.14,6.2444]
[1724680191952,6.2425,160.19,160.15,1.2485431]
[1724680192182,6.2432,160.18,160.15,1.2485431]
[1724680192367,51.44483719,160.16,160.1,21.8606]
[1724680193081,45.20073719,160.13,160.08,6.2468]
[1724680193285,51.44563719,160.13,160.07,15.6177]
[1724680193587,6.2453,160.12,160.07,15.6177]
[1724680194264,51.44573719,160.13,160.07,21.8649]
[1724680194864,70.0456,160.23,160.2,599.89089057]
[1724680195184,494.00073719,160.21,160.2,383.70192171]
[1724680195985,449.00073719,160.21,160.2,383.70192171]
[1724680196588,470.84703719,160.21,160.2,383.70192171]
[1724680197092,470.84703719,160.21,160.2,361.66182171]
[1724680197396,152.04703719,160.21,160.2,323.11710154]
[1724680197565,152.04703719,160.21,160.2,316.20070154]
[1724680197894,177.38903719,160.21,160.2,112.61443268]
[1724680198101,177.38903719,160.21,160.2,96.12873268]
[1724680198306,6.2472,160.07,160.02,31.6684]
[1724680198467,6.248,160.05,160.02,16.0458]
[1724680198790,6.2481,160.05,159.99,21.876]
[1724680199170,6.2477,160.06,160.0,6.2497]
[1724680199498,6.248,160.05,160.0,6.2497]
[1724680199689,6.2484,160.04,159.99,15.6257]
[1724680199867,6.2481,160.05,160.0,1.24975296]
[1724680200063,6.2476,160.06,160.01,6.2495]
[1724680200264,15.6158,160.1,160.02,7.49870239]
[1724680200466,6.2457,160.11,160.05,6.248]
[1724680200686,6.2461,160.1,160.04,15.621]
[1724680201394,67.34485235,160.16,160.04,15.621]
[1724680201395,6.2465,160.09,160.04,21.8694]
[1724680201696,6.2452,160.13,160.07,6.2472]
[1724680201862,15.6087,160.17,160.06,37.6079]
[1724680202189,6.2453,160.12,160.07,45.0]
[1724680202994,6.53330394,160.19,160.08,16.86566238]
[1724680203305,383.8,160.21,160.13,6.2448]
[1724680203469,15.6028,160.23,160.14,1.24876972]
[1724680203470,383.8,160.23,160.14,1.24876972]
[1724680203668,0.8277002,160.24,160.13,45.0]
[1724680203908,16.4300002,160.24,160.13,45.0]
[1724680204069,22.96097041,160.24,160.12,15.6125]
[1724680204274,22.96097041,160.24,160.13,1.24875267]
[1724680204471,6.2422,160.2,160.14,6.2445]
[1724680204718,6.2422,160.2,160.15,1.24862126]
[1724680205374,22.96097041,160.24,160.14,1.24863754]
[1724680205567,22.96097041,160.24,160.13,6.2448]
[1724680205904,6.2422,160.2,160.14,7.493139]
[1724680206203,6.2422,160.2,160.15,1.24864962]
[1724680206382,6.2427,160.19,160.12,15.6125]
[1724680206581,6.2427,160.19,160.13,6.2447]
[1724680207166,76.96964843,160.24,160.13,6.2447]
[1724680207405,6.2441,160.15,160.14,1.56361316]
[1724680207608,6.2446,160.14,160.08,6.2465]
[1724680207898,54.00867802,160.21,160.09,1.5638537]
[1724680207899,69.61677802,160.18,160.09,1.5638537]
[1724680208101,6.2449,160.13,160.1,1.56423428]
[1724680208271,383.8,160.19,160.06,37.6083]
[1724680208272,69.61917802,160.15,160.06,21.9894]
[1724680208478,6.2456,160.12,160.07,1.5644114]
[1724680208799,6.245,160.13,160.08,1.56438646]
[1724680208979,6.245,160.13,160.07,7.4964322]
[1724680209377,6.2453,160.12,160.08,1.56428822]
[1724680209587,6.2453,160.12,160.09,1.56428822]
[1724680209798,6.2461,160.1,160.06,21.9894]
[1724680210102,6.2461,160.1,160.07,1.5643489]
[1724680210301,54.00867802,160.12,160.02,44.3784]
[1724680210495,54.00867802,160.12,160.03,1.5644761]
[1724680210496,6.2473,160.07,160.03,1.5644761]
[1724680210679,383.8,160.11,160.02,22.5063]
[1724680210885,6.2472,160.07,160.04,1.56450407]
[1724680211302,383.8,160.11,160.05,1.56453635]
[1724680211303,6.2479,160.06,160.05,1.56453635]
[1724680211606,6.2479,160.06,159.94,22.2272]
[1724680211607,74.00867802,160.06,159.94,22.2272]
[1724680211808,6.2496,160.01,159.95,1.56493858]
[1724680211988,6.2496,160.01,159.96,1.56493858]
[1724680212186,6.2496,160.01,159.97,1.56493858]
[1724680212500,6.2496,160.01,159.98,1.56493858]
[1724680212702,6.2496,160.01,159.94,22.2272]
[1724680213005,6.249,160.03,159.96,6.2515]
[1724680213205,6.249,160.03,159.97,1.56508715]
[1724680213409,6.249,160.03,159.96,7.50163778]
[1724680213982,26.2483,160.05,159.98,6.2507]
[1724680214177,20.0,160.05,159.99,7.50018256]
[1724680214492,390.0476,160.06,160.0,15.6246]
[1724680214493,383.8,160.06,160.0,15.6246]
[1724680214689,6.2469,160.08,160.01,46.24966198]
[1724680214888,20.0,160.11,159.96,15.6282]
[1724680215084,20.0,160.11,159.97,46.24992079]
[1724680215085,6.53724809,160.09,159.97,46.24992079]
[1724680215291,6.53724809,160.09,159.97,45.0]
[1724680215500,54.00867802,160.07,159.96,15.6282]
[1724680215692,6.2493,160.02,159.96,15.6282]
[1724680215896,80.6192,160.06,159.94,6.5971]
[1724680216219,6.2508,159.98,159.94,6.5971]
[1724680216510,6.2503,160.0,159.94,6.5971]
[1724680216880,6.2503,159.99,159.94,6.5971]
[1724680218186,6.2508,159.98,159.94,6.5971]
[1724680218882,383.8,160.03,159.96,6.2514]
[1724680218883,6.2492,160.02,159.96,6.2514]
[1724680219083,6.2492,160.02,159.96,7.50155669]
[1724680219282,390.0488,160.03,159.96,7.50155669]
[1724680219512,390.0488,160.03,159.97,6.2511]
[1724680219687,6.2488,160.03,159.97,6.2511]
[1724680219879,403.8,160.06,159.97,6.2511]
[1724680220100,6.2484,160.04,159.98,7.50064465]
[1724680220283,6.2484,160.04,159.99,1.24989933]
[1724680220885,6.2484,160.04,159.98,6.2506]
[1724680221084,6.2484,160.04,159.99,1.24995178]
[1724680221509,6.2476,160.07,160.0,6.2496]
[1724680222019,6.2477,160.06,160.0,6.2496]
[1724680222183,383.8,160.08,159.99,15.6251]
[1724680222381,383.8,160.08,160.02,6.2489]
[1724680222581,383.8,160.08,160.0,6.2496]
[1724680222810,6.2472,160.07,160.01,6.2495]
[1724680223189,383.8,160.08,159.99,21.8752]
[1724680223392,6.2483,160.05,159.99,21.8752]
[1724680224099,6.2484,160.04,159.99,21.8752]
[1724680224309,6.2484,160.04,159.99,15.6251]
[1724680224507,6.248,160.05,159.99,21.8754]
[1724680224815,6.248,160.05,160.0,6.2498]
[1724680224987,6.248,160.05,159.99,21.8754]
[1724680225389,6.2485,160.04,159.99,15.6251]
[1724680225691,383.8,160.08,159.98,1.24998687]
[1724680225892,20.0,160.07,159.95,20.0]
[1724680226097,20.0,160.07,159.96,45.0]
[1724680226419,6.2484,160.05,159.99,6.25]
[1724680226613,6.2484,160.05,159.99,7.49993559]
[1724680227412,6.2484,160.05,159.99,6.25]
[1724680227616,6.2484,160.05,159.99,7.49993781]
[1724680228629,20.0,160.07,160.0,6.2498]
[1724680228793,390.0469,160.08,160.03,6.2487]
[1724680228994,6.2469,160.08,160.03,6.2487]
[1724680229294,22.7401507,160.13,160.03,6.2487]
[1724680229295,6.2464,160.1,160.04,12.3377]
[1724680230314,6.2465,160.09,160.04,12.3377]
[1724680230690,383.8,160.12,160.04,12.3377]
[1724680230691,15.615,160.11,160.04,6.0894]
[1724680230892,45.0705675,160.09,160.02,15.2946]
[1724680231101,6.2492,160.02,159.97,16.351]
[1724680232025,6.2498,160.01,159.97,16.351]
[1724680232201,6.2493,160.02,159.97,16.351]
[1724680232815,6.2488,160.03,159.97,16.351]
[1724680233020,383.8,160.06,159.97,17.60113184]
[1724680233218,6.2485,160.04,159.98,6.2504]
[1724680233425,26.248,160.05,159.99,6.2501]
[1724680233603,6.2485,160.04,159.99,6.2501]
[1724680234025,6.2488,160.03,159.98,23.12678542]
[1724680235114,6.2493,160.02,159.97,16.351]
[1724680235321,20.0,160.05,159.97,16.351]
[1724680235533,6.2499,160.01,159.97,16.351]
[1724680236734,6.2487,160.04,159.98,6.2507]
[1724680237232,6.2481,160.05,159.99,7.50024641]
[1724680237647,6.2477,160.06,159.99,16.87544641]
[1724680237934,383.8,160.11,160.03,15.6216]
[1724680238113,383.8,160.11,160.04,6.2484]
[1724680238312,383.8,160.11,160.04,12.4795]
[1724680238518,6.2461,160.1,160.04,13.72912089]
[1724680238710,383.8,160.11,160.05,6.2477]
[1724680238711,390.046,160.11,160.05,6.2477]
[1724680238910,390.046,160.11,160.06,15.9814]
[1724680239505,6.2461,160.1,160.06,15.9814]
[1724680240324,390.0457,160.11,160.06,15.9814]
[1724680240839,383.8,160.11,160.06,15.9814]
[1724680241043,383.8,160.11,160.07,1.24940585]
[1724680241246,6.2444,160.15,160.09,6.2464]
[1724680241542,383.8,160.18,160.1,7.49514794]
[1724680241750,6.284,160.22,160.14,6.2444]
[1724680242037,6.2426,160.19,160.13,22.0471]
[1724680242218,6.2426,160.19,160.13,15.8022]
[1724680242825,6.243,160.18,160.13,15.8022]
[1724680243739,6.2435,160.17,160.13,15.8022]
[1724680244041,6.2443,160.15,160.13,15.8022]
[1724680244220,6.2443,160.15,160.12,6.444]
[1724680244422,6.2447,160.14,160.12,6.444]
[1724680245537,6.2451,160.13,160.09,15.4756]
[1724680246042,6.2445,160.15,160.09,15.4756]
[1724680246218,6.2437,160.16,160.1,1.24920028]
[1724680246546,383.8,160.2,160.1,1.24920028]
[1724680246847,20.0,160.19,160.1,1.24920028]
[1724680247523,6.2438,160.16,160.1,7.49520028]
[1724680247734,6.243,160.18,160.11,16.86223682]
[1724680247934,6.243,160.18,160.11,15.6133]
[1724680248120,6.2427,160.19,160.13,6.2447]
[1724680248323,15.6036,160.22,160.13,6.2447]
[1724680249227,20.0,160.21,160.13,6.2447]
[1724680249429,6.2426,160.19,160.13,6.2447]
[1724680250345,6.2426,160.19,160.14,1.2487504]
[1724680250730,6.2426,160.19,160.13,7.49344942]
[1724680251060,6.2433,160.17,160.12,6.2452]
[1724680251218,20.0,160.21,160.12,6.2451]
[1724680251418,20.0,160.21,160.11,21.8589]
[1724680251648,20.0,160.21,160.09,21.7217]
[1724680251852,54.01894574,160.19,160.09,15.4756]
[1724680252021,20.0,160.18,160.09,21.7219]
[1724680252223,35.6082,160.18,160.09,21.7218]
[1724680252543,6.2442,160.15,160.1,6.246]
[1724680252750,6.2442,160.15,160.09,21.722]
[1724680253615,6.2446,160.14,160.09,21.722]
[1724680253920,5.2449,160.13,160.09,15.4756]
[1724680254128,6.2446,160.14,160.09,16.72475752]
[1724680254327,6.2446,160.14,160.09,15.4756]
[1724680254521,6.245,160.13,160.09,15.4756]
[1724680255358,6.2445,160.14,160.09,15.4756]
[1724680255929,6.2442,160.15,160.09,21.722]
[1724680256330,6.2432,160.18,160.12,6.2452]
[1724680256645,390.0426,160.19,160.13,1.24891971]
[1724680256827,383.8,160.19,160.14,6.2443]
[1724680257029,383.8,160.19,160.15,1.24868136]
[1724680257234,383.3,160.19,160.14,6.2443]
[1724680258549,6.2423,160.2,160.14,6.2443]
[1724680258866,0.8277002,160.24,160.15,1.24869497]
[1724680259151,0.8277002,160.24,160.17,21.8511]
[1724680259360,6.2417,160.22,160.17,15.6079]
[1724680259734,6.2417,160.22,160.17,16.85639357]
[1724680259935,6.2411,160.23,160.17,23.09959357]
[1724680260142,5.7411,160.23,160.18,6.2428]
[1724680260335,5.7411,160.23,160.19,6.4024]
[1724680260952,0.8277002,160.24,160.19,6.4024]
[1724680261137,6.2419,160.21,160.19,6.4024]
[1724680262068,6.2414,160.22,160.19,6.4024]
[1724680262931,6.2413,160.23,160.19,6.4024]
[1724680263131,5.7413,160.23,160.19,6.4024]
[1724680263553,7.0683002,160.24,160.2,17.10707043]
[1724680263772,7.0683002,160.24,160.2,15.8587]
[1724680264553,6.2412,160.23,160.2,15.8587]
[1724680265375,6.2415,160.22,160.2,15.8587]
[1724680265545,6.2418,160.21,160.2,15.8587]
[1724680265747,6.2415,160.22,160.2,15.8587]
[1724680266674,6.2418,160.21,160.2,15.8587]
[1724680266849,44.97447717,160.22,160.16,15.8587]
[1724680267051,20.0,160.21,160.16,15.8587]
[1724680267267,6.2426,160.19,160.16,15.8587]
[1724680267467,6.2422,160.2,160.16,15.8587]
[1724680267976,20.0,160.21,160.16,15.8587]
[1724680268275,6.2422,160.2,160.16,15.8587]
[1724680268569,20.0,160.21,160.16,15.8587]
[1724680269374,6.2426,160.19,160.16,15.8587]
[1724680269577,6.2422,160.2,160.16,15.8587]
[1724680269871,383.3,160.23,160.17,1.24863219]
[1724680270375,383.3,160.23,160.16,15.8587]
[1724680270548,383.3,160.23,160.18,1.24841722]
[1724680270948,383.3,160.23,160.17,45.0]
[1724680271480,383.3,160.23,160.19,6.2425]
[1724680271679,6.2414,160.22,160.17,51.2432]
[1724680271863,6.2421,160.21,160.16,15.8587]
[1724680272054,6.2421,160.21,160.16,17.107288]
[1724680272457,6.2421,160.21,160.16,15.8587]
[1724680272670,6.243,160.18,160.16,15.8587]
[1724680272971,6.2437,160.16,160.15,6.4452]
[1724680273288,6.2434,160.17,160.15,6.4452]
[1724680273773,6.2446,160.14,160.12,16.0335]
[1724680274081,6.2449,160.13,160.12,16.0335]
[1724680274880,6.2453,160.12,160.11,6.1075]
[1724680275063,6.2457,160.11,160.08,15.5043]
[1724680275263,44.97447717,160.12,160.08,15.5043]
[1724680275455,6.2464,160.09,160.07,6.3479]
[1724680275779,6.2461,160.1,160.07,6.3479]
[1724680276281,44.97447717,160.15,160.07,6.3479]
[1724680276463,60.58547717,160.15,160.07,6.3479]
[1724680276661,6.2468,160.08,160.07,6.3479]
[1724680276851,44.97447717,160.11,160.04,15.5043]
[1724680277051,6.2478,160.06,160.04,15.5043]
[1724680277251,6.2473,160.07,160.04,15.5043]
[1724680277578,6.2469,160.08,160.04,15.5043]
[1724680278775,399.4131,160.13,160.04,15.5043]
[1724680278975,383.8,160.13,160.05,1.24966763]
[1724680279173,383.8,160.13,160.05,16.86886763]
[1724680279489,383.8,160.13,160.07,15.6175]
[1724680279659,383.8,160.13,160.09,6.2464]
[1724680280292,383.8,160.13,160.1,6.2459]
[1724680280465,383.8,160.13,160.09,6.2464]
[1724680281203,383.8,160.19,160.11,21.1793]
[1724680281364,6.2436,160.17,160.11,27.4249]
[1724680281772,383.8,160.22,160.12,1.24898067]
[1724680282023,6.2421,160.21,160.14,6.2444]
[1724680282409,6.2421,160.21,160.14,7.49311788]
[1724680282571,6.2421,160.21,160.15,6.244]
[1724680283201,6.2422,160.2,160.13,15.6116]
[1724680283367,6.2422,160.2,160.14,1.24868407]
[1724680283768,6.2418,160.21,160.14,1.24868407]
[1724680284005,0.8277002,160.24,160.15,1.24868174]
[1724680284185,0.8277002,160.24,160.16,21.5196]
[1724680284504,0.8277002,160.24,160.19,6.2422]
[1724680285180,0.8277002,160.24,160.2,6.2421]
[1724680285379,0.8277002,160.24,160.21,6.2417]
[1724680285706,0.8277002,160.24,160.2,6.242]
[1724680285910,0.8277002,160.24,160.19,7.49083132]
[1724680286080,0.8277002,160.24,160.18,15.6072]
[1724680286081,0.8277002,160.24,160.2,6.2419]
[1724680286286,0.8277002,160.24,160.22,6.2413]
[1724680286496,0.8277002,160.24,160.23,6.241]
[1724680286793,0.8277002,160.24,160.22,6.2414]
[1724680287494,0.8277002,160.24,160.23,22.7655]
[1724680291915,7.0683002,160.24,160.2,6.6519]
[1724680292102,0.8277002,160.24,160.2,6.6519]
[1724680293315,6.2421,160.21,160.16,6.2124]
[1724680293794,6.2421,160.21,160.16,7.46103766]
[1724680293990,0.8277002,160.24,160.16,21.821]
[1724680294210,7.0684002,160.24,160.18,6.2426]
[1724680294721,7.0684002,160.24,160.19,6.2425]
[1724680295014,0.8277002,160.24,160.2,6.2419]
[1724680295588,0.8277002,160.24,160.18,15.6066]
[1724680295589,7.0684002,160.24,160.19,6.2422]
[1724680295898,6.2411,160.23,160.18,15.6066]
[1724680296417,6.2411,160.23,160.18,16.85505906]
[1724680296719,44.97447717,160.22,160.18,16.85505906]
[1724680297036,44.97447717,160.22,160.18,15.6066]
[1724680297886,44.97447717,160.22,160.18,16.85505945]
[1724680298089,44.97447717,160.22,160.18,23.09795945]
[1724680298492,44.97447717,160.22,160.19,6.2424]
[1724680298700,7.0683002,160.24,160.19,6.2424]
[1724680298989,0.8277002,160.24,160.2,6.2421]
[1724680299708,0.8277002,160.24,160.18,15.6066]
[1724680300089,0.8277002,160.24,160.19,6.2424]
[1724680300584,7.0684002,160.24,160.19,6.2424]
[1724680301001,7.0684002,160.24,160.18,21.8494]
[1724680302006,6.2413,160.23,160.18,15.6066]
[1724680302208,6.2413,160.23,160.18,16.8550535]
[1724680302408,6.2423,160.2,160.16,6.2124]
[1724680302818,44.97447717,160.19,160.16,6.2124]
[1724680303200,44.97447717,160.19,160.15,16.6051]
[1724680303723,51.21707717,160.19,160.15,16.6051]
[1724680304106,44.97447717,160.16,160.12,21.9742]
[1724680304306,44.97447717,160.16,160.13,7.49372859]
[1724680304722,44.97447717,160.16,160.13,6.2448]
[1724680304922,44.97447717,160.16,160.12,21.9742]
[1724680305523,51.21817717,160.16,160.12,6.3613]
[1724680306605,44.97447717,160.16,160.12,6.3613]
[1724680306810,44.97447717,160.16,160.12,12.6064]
[1724680307613,44.97447717,160.16,160.12,6.3613]
[1724680308329,51.21827717,160.16,160.12,6.3613]
[1724680309020,44.97447717,160.16,160.12,6.3613]
[1724680309339,44.97447717,160.16,160.12,13.85546326]
[1724680310934,44.97447717,160.16,160.12,12.6065]
[1724680311405,44.97447717,160.16,160.12,13.85543292]
[1724680312639,44.97447717,160.16,160.12,12.6065]
[1724680314130,44.97447717,160.16,160.12,13.85546412]
[1724680314434,44.97447717,160.16,160.12,12.6065]
[1724680314617,44.97447717,160.16,160.13,15.6113]
[1724680314816,44.97447717,160.16,160.13,21.8558]
[1724680315839,44.97447717,160.16,160.13,15.6113]
[1724680316353,44.97447717,160.19,160.14,1.24890232]
[1724680316849,44.97447717,160.19,160.16,6.2434]
[1724680317847,44.97447717,160.19,160.17,6.2432]
[1724680318641,6.2414,160.22,160.17,6.2432]
[1724680318642,51.21587717,160.22,160.17,6.2432]
[1724680318809,44.97447717,160.22,160.18,6.2428]
[1724680319918,51.21617717,160.22,160.17,15.608]
[1724680320115,44.97447717,160.22,160.17,21.851]
[1724680320331,428.77447717,160.23,160.18,7.49114804]
[1724680320514,44.97447717,160.23,160.19,15.6059]